[Event "Singapore Open-A 2024"]
[Site "Singapore"]
[Date "2024.11.30"]
[Round "2.6"]
[White "Sathvik Adiga"]
[Black "Sethuraman, S.P."]
[Result "0-1"]
[ECO "C54"]
[WhiteElo "2408"]
[BlackElo "2586"]
[Annotator "TA"]
[PlyCount "60"]
[EventDate "2024.11.29"]
[EventType "swiss"]
[EventCountry "SIN"]
[SourceTitle "playchess.com"]
[Source "ChessBase"]
[SourceQuality "1"]
[TimeControl "5400+30"]

{[%evp 11,59,15,13,13,22,10,12,-104,-85,-82,-87,-51,-52,-61,-66,-66,-69,-54,-60,-75,-75,-72,-60,-35,-43,-202,-103,-111,-89,-185,-200,-240,-229,-571,-575,-1223,-983,-977,-947,-1604,-1591,-29989,-29990,-29997,-29998,-29998,-29997,-29998,-29998,-29999]} 1. e4 {[%emt 0:00:17]} e5 {[%emt 0:00:19]} 2. Nf3 {[%emt 0:00:21]} Nc6 {[%emt 0:00:11]} 3. Bc4 {[%emt 0:00:05]} Nf6 {[%emt 0:00:07]} 4. d3 {[%emt 0:00:04]} Bc5 {[%emt 0:00:06]} 5. c3 {[%emt 0:00:05]} a6 {[%emt 0:00:12]} 6. O-O {[%emt 0:00:10]} d6 {[%emt 0:00:06]} 7. a4 {[%emt 0:00:07]} Ba7 {[%emt 0:00:07]} 8. Re1 {[%emt 0:00:06]} Ng4 {[%emt 0:00:06]} 9. d4 {[%emt 0:14:09]} (9. Re2 $11) 9... exd4 $1 $17 {[%emt 0:10:58]} 10. cxd4 {[%emt 0:04:24] [#]} Nxd4 $1 {[%emt 0:04:18]} 11. Nxd4 {[%emt 0:10:16] Hoping for Rf1.} Qh4 $1 {[%emt 0:00:16][%csl LRf2,LRh2]} 12. Be3 {[%emt 0:04:03] Strongly threatening Nf3.} (12. Nf3 $2 Qxf2+ 13. Kh1 Qg1+ 14. Nxg1 Nf2#) 12... Qxh2+ {[%emt 0:01:00]} (12... Nxh2 $2 13. Nf3 Nxf3+ 14. Qxf3 $18) 13. Kf1 {[%emt 0:00:08]} Qh1+ $1 {[%emt 0:03:43]} 14. Ke2 {[%emt 0:00:08]} Qxg2 {[%emt 0:00:18][%cal Og4e5] ...Ne5! is the strong threat.} 15. Rg1 {[%emt 0:11:40]} Nxe3 {[%emt 0:21:32]} 16. Kxe3 {[%emt 0:52:27]} Qh3+ {[%emt 0:12:46]} 17. Rg3 {[%emt 0:00:00]} Qh6+ {[%emt 0:00:14][%mdl 1024] Black has compensation.} 18. f4 $2 {[%emt 0:00:00]} (18. Kd3 $1 $15) 18... O-O {[%emt 0:08:28]} (18... Qh2 $19 19. Qe1 d5 20. Bxd5 c6) 19. Nc3 {[%emt 0:00:00]} Be6 {[%emt 0:03:06] Some like it hot} 20. Qd3 {[%emt 0:00:00] [#]} (20. Bxe6 $17 fxe6 21. Kd3 Rxf4 (21... Qxf4 $2 22. Rxg7+ Kxg7 23. Nxe6+ Kh8 24. Nxf4 $18) 22. Nde2) 20... b5 $1 $19 {[%emt 0:03:10][%mdl 512]} 21. Bxe6 {[%emt 0:00:00]} (21. axb5 $2 Bxc4 (21... Bxd4+ $2 22. Qxd4 g6 23. Rxa6 $18) 22. Qd1 (22. Qxc4 $2 axb5 23. Qf1 Qh2 $19) 22... f5 (22... Bxb5 23. Ncxb5 axb5 24. Rxa7 $11) (22... axb5 23. Rxa7 Rxa7 24. Nf5 $11) 23. Rxa6 Qh2 $19 (23... fxe4 $2 24. Qg4 $19)) (21. Bd5 c5) 21... fxe6 {[%emt 0:00:41]} 22. Ke2 $2 {[%emt 0:00:00] [#]} (22. axb5 $2 Qxf4+ 23. Ke2 Bxd4 $19) (22. Nce2 {nothing else works.} e5 (22... c5 23. Rag1 $17) 23. Kd2 Bxd4 (23... exd4 24. Rag1 $11) 24. Rh3) 22... Qh2+ $1 {[%emt 0:01:41]} ({And not} 22... Qxf4 23. Rxg7+ (23. axb5 $2 {is the wrong capture.} Bxd4 24. Qf3 Qe5 $19) 23... Kh8 24. Rxh7+ (24. Rxc7 $2 Qf2+ 25. Kd1 Bxd4 $19) (24. Rg2 Rf6 $16) 24... Kxh7 25. Rh1+ Kg6 26. Rg1+ Kh5 27. Rh1+ Kg6 28. Rg1+ Kh5 29. Rh1+ Kg6 $11) (22... Rxf4 23. Nf3 $17) 23. Kf3 {[%emt 0:00:00]} Bxd4 {[%emt 0:02:25]} 24. Ne2 {[%emt 0:00:00]} Bf2 {[%emt 0:01:30]} 25. Rg2 {[%emt 0:00:00]} Qh3+ {[%emt 0:00:13]} 26. Ng3 {[%emt 0:00:00] [#]} Rxf4+ $3 {[%emt 0:00:20][%mdl 512] Black mates.} 27. Kxf4 {[%emt 0:00:00] White is weak on the dark squares} (27. Ke2 Qxg2) 27... Rf8+ {[%emt 0:00:18]} 28. Nf5 {[%emt 0:00:00]} e5+ {[%emt 0:00:13]} 29. Kg5 {[%emt 0:00:00]} h6+ {[%emt 0:00:12]} 30. Kg6 {[%emt 0:00:00]} Rf6# {[%emt 0:00:06] Weighted Error Value: White=1.26/Black=0.24 (precise) .  Mistake:       	White=4     	Black=1      Inaccurate:     	White=1     	---        OK:         	White=2     	Black=4      Best:        	White=3     	Black=2      Strong:       	---       	Black=3      Brilliant:      	---       	Black=2} 0-1

[Event "Singapore Open-A 2024"]
[Site "Singapore"]
[Date "2024.11.30"]
[Round "2.7"]
[White "Gong, Sunle"]
[Black "Piorun, Kacper"]
[Result "1/2-1/2"]
[ECO "C01"]
[WhiteElo "2404"]
[BlackElo "2580"]
[Annotator "TA"]
[PlyCount "183"]
[EventDate "2024.11.29"]
[EventType "swiss"]
[EventCountry "SIN"]
[SourceTitle "playchess.com"]
[Source "ChessBase"]
[SourceQuality "1"]
[TimeControl "5400+30"]

{[%evp 9,183,28,22,-2,-3,-13,-6,0,-2,0,-3,-7,0,-10,-6,0,0,-8,0,-10,-7,-10,-16,-12,-12,-37,-37,-37,-31,-41,-31,-27,-28,-23,-27,-34,-19,-20,-24,-32,-41,-44,-42,-36,-54,-48,-45,-106,-113,-114,-123,-121,-119,-103,-110,-118,-118,-111,-123,-143,-150,-138,-131,-127,-143,-135,-129,-153,-158,-161,-150,-147,-158,-165,-139,-132,-129,-132,-126,-129,-119,-176,-175,-152,-116,-134,-147,-173,-173,-181,-176,-195,-124,-124,-118,-135,-121,-138,-135,-143,-134,-160,-152,-162,-159,-159,-152,-146,-127,-152,-162,-166,0,-29,0,-145,-51,-161,-51,-63,-8,-8,-8,-151,-8,-8,-8,-8,-8,-8,-8,-8,-8,-8,-8,-8,-8,-8,-8,-8,-8,-8,-8,-8,0,-8,0,-8,0,-8,-8,-8,-8,-8,-8,-8,-8,-8,-8,-8,-8,-8,-8,-8,-8,-8,-8,-8,-8,-8,-8,-8,-8,-8,-8,-8]} 1. d4 {[%emt 0:00:04]} e6 {[%emt 0:00:09]} 2. c4 {[%emt 0:00:06]} b6 {[%emt 0:00:04]} 3. e4 {[%emt 0:00:37]} Bb4+ {[%emt 0:00:07]} 4. Bd2 {[%emt 0:00:27]} Bxd2+ {[%emt 0:00:12]} 5. Qxd2 {[%emt 0:00:04]} d5 {[%emt 0:00:07]} 6. Nc3 {[%emt 0:03:33]} dxe4 {[%emt 0:05:35]} 7. Nxe4 {[%emt 0:00:09]} Nf6 {[%emt 0:05:01]} 8. Nxf6+ {[%emt 0:01:25]} Qxf6 {[%emt 0:00:07]} 9. Be2 {[%emt 0:00:23]} Bb7 {[%emt 0:00:51]} 10. Bf3 {[%emt 0:00:54]} Nc6 {[%emt 0:02:23] White must now prevent ...0-0-0.} 11. Ne2 {[%emt 0:00:40]} O-O {[%emt 0:01:32]} 12. O-O {[%emt 0:00:36]} Rfd8 {[%emt 0:01:47][%cal Rc6d4]} 13. Qe3 {[%emt 0:02:04]} Rab8 {[%emt 0:02:55][%cal Rc6d4,Ba8b8,Bb8b7,Bb7d7][%mdl 32]} 14. Rfd1 {[%emt 0:00:39]} h6 {[%emt 0:06:05]} 15. Rac1 {[%emt 0:07:07]} Ne7 {[%emt 0:00:59]} 16. Bxb7 {[%emt 0:00:57]} Rxb7 {[%emt 0:00:03]} 17. Qe4 {[%emt 0:02:06]} c6 {[%emt 0:00:39]} 18. Rc3 {[%emt 0:00:22]} Rbd7 {[%emt 0:02:36]} 19. Rcd3 {[%emt 0:06:07]} b5 {[%emt 0:10:03]} 20. b3 {[%emt 0:02:17]} bxc4 {[%emt 0:03:01]} 21. bxc4 {[%emt 0:00:03]} Qf5 {[%emt 0:00:08]} 22. Qxf5 {[%emt 0:15:57]} Nxf5 {[%emt 0:00:06]} 23. g4 {[%emt 0:01:02]} Ne7 {[%emt 0:03:57][%cal Bf5e7,Be7c6,Bc6a5,Ba5c4,Bc4b2][%mdl 32]} 24. f3 {[%emt 0:02:41] [#]} c5 $1 {[%emt 0:01:40]} 25. Kf2 {[%emt 0:01:54]} (25. f4 Nc8) 25... Nc6 {[%emt 0:02:32][%cal Rc5d4]} 26. Ke3 {[%emt 0:01:24]} cxd4+ {[%emt 0:02:32]} 27. Nxd4 {[%emt 0:00:34]} Na5 {[%emt 0:00:48]} 28. c5 {[%emt 0:11:49]} (28. Ke2 $15) 28... Nc4+ $1 $17 {[%emt 0:01:13]} 29. Ke2 {[%emt 0:00:32]} Nb2 $1 $36 {[%emt 0:00:45][%csl LRd1,LRd3][%mdl 2048] Black is really pushing.} 30. c6 {[%emt 0:00:09]} Nxd3 {[%emt 0:01:13]} 31. cxd7 {[%emt 0:00:25][%cal Od4c6][%mdl 4096] Endgame. KRN-KRN} Nf4+ {[%emt 0:00:07]} 32. Ke3 {[%emt 0:03:58] Nc6 is the strong threat.} Nd5+ {[%emt 0:00:13]} 33. Kf2 {[%emt 0:00:02]} Rxd7 {[%emt 0:00:11]} (33... g5 {seems wilder.} 34. Ne2 Kf8 35. Rd3 Ke7) 34. Ne2 {[%emt 0:01:07] Repels Nc3} Rb7 {[%emt 0:01:29]} 35. Rd2 {[%emt 0:00:09] Prevents Rb2.} g5 {[%emt 0:01:18]} 36. Kg3 {[%emt 0:00:23]} Rb4 {[%emt 0:01:15]} 37. h4 {[%emt 0:00:55]} Kg7 {[%emt 0:02:33]} 38. hxg5 {[%emt 0:00:14]} hxg5 {[%emt 0:00:06]} 39. Nd4 {[%emt 0:02:15]} Nf4 {[%emt 0:09:03][%cal Ob4d4] And now ...Rxd4! would win.} 40. Nc6 {[%emt 0:01:05]} Ra4 {[%emt 0:00:05]} 41. Ne5 {[%emt 0:00:48]} a6 {[%emt 0:06:12]} 42. Rc2 {[%emt 0:03:59]} Ra5 {[%emt 0:01:26]} 43. Nd7 {[%emt 0:00:51]} Nd3 {[%emt 0:04:56] Prevents Rc5} 44. Rc3 {[%emt 0:02:01]} Rd5 {[%emt 0:00:16]} 45. Nb8 {[%emt 0:02:35]} (45. Nb6 $17 Rd6 46. Nc4) 45... Nf4 $19 {[%emt 0:01:17]} 46. Rc2 {[%emt 0:00:05] Wards off Rd2} Rd6 {[%emt 0:02:25]} 47. Nc6 {[%emt 0:26:26]} Rd1 {[%emt 0:02:49]} 48. Kh2 {[%emt 0:00:00]} Rd3 {[%emt 0:01:03]} 49. Kg3 {[%emt 0:00:00]} Kf6 {[%emt 0:01:26]} 50. Na5 {[%emt 0:00:00] [#]} Rd1 {[%emt 0:03:22]} (50... Rc3 $1 $19 {[%cal Rc3c2]} 51. Rxc3 Ne2+ 52. Kf2 Nxc3) 51. Nb3 {[%emt 0:00:00]} Rh1 {[%emt 0:00:27] Threatens to win with ...Rh3+.} 52. Nd2 {[%emt 0:00:00]} Rg1+ {[%emt 0:00:41]} 53. Kf2 {[%emt 0:00:00]} Rg2+ {[%emt 0:01:37]} 54. Kf1 {[%emt 0:03:30]} Kg6 {[%emt 0:04:37]} 55. a4 {[%emt 0:00:00]} Rh2 {[%emt 0:01:37]} 56. Kg1 {[%emt 0:00:00]} Re2 {[%emt 0:00:04]} 57. Kf1 {[%emt 0:00:00]} f5 {[%emt 0:02:40]} 58. a5 {[%emt 0:00:00]} Rh2 {[%emt 0:02:17]} 59. Kg1 {[%emt 0:00:00]} Rg2+ {[%emt 0:00:36]} 60. Kf1 {[%emt 0:00:00]} Rh2 {[%emt 0:00:54]} ({Much less strong is} 60... fxg4 61. fxg4 Re2 (61... Rxg4 62. Rc6 $19) 62. Rb2 $17) ({Better is} 60... Kf6 $19 {Strongly threatening ...Ke7.} 61. gxf5 exf5 (61... Kxf5 62. Rc5+ e5 63. Nc4 $11)) 61. Kg1 $1 $11 {[%emt 0:00:00]} Re2 {[%emt 0:00:08]} (61... Rh6 $11) 62. Kf1 $17 {[%emt 0:00:00]} Kf6 {[%emt 0:00:09]} (62... fxg4 $17 {( -> ...g3)} 63. fxg4 Kh6 (63... Rg2 64. Rb2 $17)) 63. gxf5 $1 $15 {[%emt 0:00:00]} Kxf5 {[%emt 0:01:38]} ({Black should play} 63... exf5 $19 {aiming for ...Ke7.} 64. Rc6+ Ke5 65. Nc4+ Kd5) 64. Rc5+ {[%emt 0:00:00]} Re5 {[%emt 0:02:04]} (64... Kg6 $15 65. Ne4 Ra2 66. Rxg5+ Kf7) 65. Rxe5+ $11 {[%emt 0:00:00]} Kxe5 {[%emt 0:00:01] KN-KN} 66. Kf2 {[%emt 0:03:44] [#]} (66. Ne4 $11 {was the only way to keep the balance.}) 66... Nd5 {[%emt 0:01:57]} (66... Nd3+ $1 $17 67. Kg3 Kf5) 67. Ne4 {[%emt 0:00:43] The position is equal.} Nb4 {[%emt 0:00:38][%cal Og5g4]} (67... g4 $5) 68. Nxg5 {[%emt 0:00:41]} Nc6 {[%emt 0:00:05]} 69. Ke3 {[%emt 0:01:10]} Nxa5 {[%emt 0:00:09]} 70. Kd3 {[%emt 0:00:31]} Kd5 {[%emt 0:00:50]} 71. Kc3 {[%emt 0:00:27]} Nc6 {[%emt 0:00:47]} 72. Kb3 {[%emt 0:00:11]} e5 {[%emt 0:00:14]} 73. Ka4 $1 {[%emt 0:00:19]} Kc4 {[%emt 0:00:48]} 74. Nf7 $1 {[%emt 0:00:23]} Kd4 {[%emt 0:00:05]} 75. Nd6 {[%emt 0:00:43]} Kc5 {[%emt 0:01:13]} 76. Nf7 {[%emt 0:00:16]} Kd5 {[%emt 0:00:41]} 77. Nh6 {[%emt 0:00:32]} Kc5 {[%emt 0:00:41]} 78. Nf7 {[%emt 0:00:54]} Kd4 {[%emt 0:00:06]} 79. Nd6 $1 {[%emt 0:00:09]} Ke3 {[%emt 0:00:05]} 80. Nc4+ $1 {[%emt 0:00:03]} Kf4 {[%emt 0:00:04]} 81. Nd2 {[%emt 0:00:04]} Kg5 {[%emt 0:01:22]} 82. Nb3 {[%emt 0:01:20]} Nd4 {[%emt 0:00:46]} 83. Nc5 {[%emt 0:00:29]} Nxf3 {[%emt 0:00:20]} 84. Ka5 $1 {[%emt 0:00:05]} Kf5 {[%emt 0:00:19]} 85. Kxa6 {[%emt 0:00:07]} Nd4 {[%emt 0:00:26]} 86. Ka5 {[%emt 0:00:29]} Ne6 {[%emt 0:00:25]} 87. Nb7 {[%emt 0:01:15]} Ke4 {[%emt 0:00:10]} 88. Kb4 {[%emt 0:00:36]} Kd3 {[%emt 0:01:16]} 89. Nd6 {[%emt 0:00:05]} Ng5 {[%emt 0:00:03]} 90. Kc5 {[%emt 0:00:18]} Ne4+ {[%emt 0:00:08]} 91. Kd5 {[%emt 0:00:03]} Nxd6 {[%emt 0:00:05]} 92. Kxe5 $1 {[%emt 0:00:02] And White is the lucky defender.   Weighted Error Value: White=0.07 (flawless) /Black=0.09 (flawless) .  Mistake:       	White=3     	Black=7      OK:         	White=38    	Black=28     Best:        	White=11    	Black=3      Strong:       	White=8     	Black=2} 1/2-1/2

[Event "Singapore Open-A 2024"]
[Site "Singapore"]
[Date "2024.11.30"]
[Round "2.8"]
[White "Gumularz, Szymon"]
[Black "Laylo, Darwin"]
[Result "1/2-1/2"]
[ECO "C43"]
[WhiteElo "2579"]
[BlackElo "2402"]
[Annotator "RC"]
[PlyCount "62"]
[EventDate "2024.11.29"]
[EventType "swiss"]
[EventCountry "SIN"]
[SourceTitle "playchess.com"]
[Source "ChessBase"]
[SourceQuality "1"]
[TimeControl "5400+30"]

1. e4 {[%emt 0:00:13]} e5 {[%emt 0:01:23]} 2. Nf3 {[%emt 0:00:12]} Nf6 {[%emt 0:00:14]} 3. d4 {[%emt 0:00:57]} Nxe4 {[%emt 0:00:24]} 4. dxe5 {[%emt 0:00:09]} d5 {[%emt 0:01:32]} 5. Nbd2 {[%emt 0:00:38]} Nc6 {[%emt 0:03:37]} 6. Bb5 {[%emt 0:11:26]} Bd7 {[%emt 0:10:27]} 7. O-O {[%emt 0:17:29]} Be7 {[%emt 0:11:58]} 8. Bxc6 {[%emt 0:05:50]} Bxc6 {[%emt 0:07:33]} 9. Nd4 {[%emt 0:00:15]} Nxd2 {[%emt 0:10:38]} 10. Nxc6 {[%emt 0:23:04]} bxc6 {[%emt 0:02:57]} 11. Bxd2 {[%emt 0:00:06]} O-O {[%emt 0:00:57]} 12. f4 {[%emt 0:00:39]} f6 {[%emt 0:08:25]} 13. Qe2 {[%emt 0:03:46]} fxe5 {[%emt 0:08:34]} 14. fxe5 {[%emt 0:00:07]} Bc5+ {[%emt 0:00:02]} 15. Kh1 {[%emt 0:00:08]} Qh4 {[%emt 0:00:02]} 16. Bc3 {[%emt 0:16:26]} Rae8 {[%emt 0:06:06]} 17. Qa6 {[%emt 0:02:24]} Bb6 {[%emt 0:06:27]} 18. a4 {[%emt 0:00:06]} Qh6 {[%emt 0:00:51]} 19. h3 {[%emt 0:05:31]} Bf2 {[%emt 0:09:50]} 20. Qe2 {[%emt 0:02:07]} Qe3 {[%emt 0:01:29]} 21. Qg4 {[%emt 0:03:18]} d4 {[%emt 0:03:06]} 22. Bb4 {[%emt 0:00:04]} Rf4 {[%emt 0:00:29]} 23. Qd7 {[%emt 0:00:14]} Qxe5 {[%emt 0:00:13]} 24. Qxc6 {[%emt 0:01:03]} h6 {[%emt 0:02:14]} 25. Rad1 {[%emt 0:00:30]} Re6 {[%emt 0:01:01]} 26. Qc4 {[%emt 0:00:35]} Kh7 {[%emt 0:01:41]} 27. Bd2 {[%emt 0:03:14]} Rff6 {[%emt 0:00:43]} 28. c3 {[%emt 0:01:10]} Qe2 {[%emt 0:00:15]} 29. Qxe2 {[%emt 0:00:43]} Rxe2 {[%emt 0:00:02]} 30. cxd4 {[%emt 0:00:11]} Bxd4 {[%emt 0:00:03]} 31. Rxf6 {[%emt 0:00:09]} Bxf6 {[%emt 0:00:34]} 1/2-1/2

[Event "Singapore Open-A 2024"]
[Site "Singapore"]
[Date "2024.11.30"]
[Round "2.9"]
[White "Gomez, John Paul"]
[Black "Iturrizaga Bonelli, Eduardo"]
[Result "1/2-1/2"]
[ECO "E21"]
[WhiteElo "2403"]
[BlackElo "2575"]
[Annotator "TA"]
[PlyCount "64"]
[EventDate "2024.11.29"]
[EventType "swiss"]
[EventCountry "SIN"]
[SourceTitle "playchess.com"]
[Source "ChessBase"]
[SourceQuality "1"]
[TimeControl "5400+30"]

{[%evp 13,64,0,17,14,0,15,6,6,0,2,16,0,8,0,6,10,16,14,1,2,14,8,4,-9,0,-10,-4,-16,-8,-77,-72,-73,-83,-83,-91,-83,-45,-48,-68,-60,-10,-16,0,0,0,0,20,27,19,20,19,49,45]} 1. d4 {[%emt 0:00:05]} Nf6 {[%emt 0:10:57]} 2. c4 {[%emt 0:00:13]} e6 {[%emt 0:00:35]} 3. Nc3 {[%emt 0:00:23]} Bb4 {[%emt 0:00:08]} 4. e3 {[%emt 0:00:34]} O-O {[%emt 0:00:33]} 5. Bd2 {[%emt 0:00:45]} b6 {[%emt 0:01:10]} 6. Nf3 {[%emt 0:00:29]} Bb7 {[%emt 0:00:45]} 7. Bd3 {[%emt 0:00:31]} d6 {[%emt 0:01:58]} 8. a3 {[%emt 0:01:26]} Bxc3 {[%emt 0:00:11]} 9. Bxc3 {[%emt 0:00:09]} Ne4 {[%emt 0:00:45]} 10. Bxe4 {[%emt 0:01:53] The position is equal.} Bxe4 {[%emt 1:18:28]} 11. O-O {[%emt 0:00:18]} Bg6 {[%emt 0:00:00]} 12. Ne1 {[%emt 0:11:01][%cal Bf3e1,Be1d3,Bd3f4,Bf4h5,Bh5g3][%mdl 32]} Nd7 {[%emt 0:00:00]} 13. Nd3 {[%emt 0:07:37]} h6 {[%emt 0:00:00]} 14. Nf4 {[%emt 0:06:21]} Bh7 {[%emt 0:00:00]} 15. Nh5 {[%emt 0:02:28]} Qe7 {[%emt 0:00:00]} 16. Re1 {[%emt 0:08:02]} f5 {[%emt 0:00:00]} 17. b4 {[%emt 0:03:45]} Qf7 {[%emt 0:00:00]} 18. c5 {[%emt 0:04:17][%cal Od4d5]} g5 {[%emt 0:00:00]} 19. f4 {[%emt 0:08:25]} Bg6 {[%emt 0:00:00]} 20. Ng3 {[%emt 0:01:41]} Nf6 {[%emt 0:00:00]} (20... dxc5 21. dxc5 bxc5 22. Nh1 $17) 21. d5 {[%emt 0:07:08]} Nxd5 $17 {[%emt 0:00:00]} ({Of course not} 21... dxc5 $6 22. dxe6 Qxe6 23. bxc5 $11) 22. Bb2 {[%emt 0:00:44]} bxc5 {[%emt 0:00:00]} 23. bxc5 {[%emt 0:00:22]} Rab8 {[%emt 0:00:00]} ({Much worse is} 23... gxf4 24. exf4 dxc5 25. Rc1 $11) ({Don't play} 23... dxc5 $6 24. Qc1 $11) 24. Qd4 {[%emt 0:13:54][%csl Gb2][%cal Rd4h8] [#]} Kh7 {[%emt 0:00:00]} (24... Qf6 {simplifies} 25. Qxf6 Nxf6 26. Bxf6 Rxf6 27. cxd6 cxd6 28. Ne2 Rff8) 25. cxd6 {[%emt 0:00:36]} cxd6 {[%emt 0:00:00] Hoping for ...gxf4.} 26. Rad1 {[%emt 0:00:43]} Rb3 {[%emt 0:04:44]} (26... Rb5 $15) 27. Ba1 $11 {[%emt 0:03:20]} Rxa3 {[%emt 0:02:08]} 28. fxg5 {[%emt 0:02:47]} hxg5 {[%emt 0:00:46] Strongly threatening ...Kh6.} 29. e4 {[%emt 0:00:32][%cal Be3e4,Be4d5,Bd5e6][%mdl 32]} f4 {[%emt 0:01:04][%cal Bf5f4,Bf4g3][%mdl 32]} 30. exd5 {[%emt 0:03:49]} fxg3 {[%emt 0:00:04]} 31. dxe6 {[%emt 0:00:39]} Qf2+ {[%emt 0:01:09]} 32. Kh1 {[%emt 0:00:04] The board is on fire.} Qxd4 {[%emt 0:01:05] Weighted Error Value: White=0.06 (flawless) /Black=0.12 (very precise) .  Mistake:       	White=1     	Black=1      Inaccurate:     	---       	Black=1      OK:         	White=9     	Black=10     Best:        	White=4     	Black=2} 1/2-1/2

[Event "Singapore Open-A 2024"]
[Site "Singapore"]
[Date "2024.11.30"]
[Round "2.10"]
[White "Jumabayev, Rinat"]
[Black "Subhayan Kundu"]
[Result "1-0"]
[ECO "A08"]
[WhiteElo "2571"]
[BlackElo "2395"]
[Annotator "TA"]
[PlyCount "57"]
[EventDate "2024.11.29"]
[EventType "swiss"]
[EventCountry "SIN"]
[SourceTitle "playchess.com"]
[Source "ChessBase"]
[SourceQuality "1"]
[TimeControl "5400+30"]

{[%evp 9,57,41,53,50,56,42,51,41,62,33,94,82,123,125,127,133,135,83,98,100,102,108,147,119,186,196,185,172,269,275,343,333,413,400,393,337,890,890,810,804,866,844,872,857,843,815,1116,385,1097,1071]} 1. Nf3 {[%emt 0:04:08]} d5 {[%emt 0:01:44]} 2. g3 {[%emt 0:03:45]} c5 {[%emt 0:01:50]} 3. Bg2 {[%emt 0:00:06]} Nf6 {[%emt 0:00:14]} 4. O-O {[%emt 0:00:09]} h6 {[%emt 0:00:24]} 5. c4 {[%emt 0:05:50]} Nc6 {[%emt 0:09:45]} 6. cxd5 {[%emt 0:18:04]} Nxd5 {[%emt 0:10:31]} 7. Nc3 {[%emt 0:04:25]} e6 {[%emt 0:04:57]} 8. Nxd5 {[%emt 0:01:37] White is slightly better.} Qxd5 {[%emt 0:00:37]} 9. d3 {[%emt 0:00:13]} Bd7 {[%emt 0:13:40]} (9... Be7 $14) 10. Be3 $16 {[%emt 0:01:11]} Rc8 {[%emt 0:00:37]} 11. d4 {[%emt 0:08:53]} cxd4 {[%emt 0:16:40]} 12. Nxd4 {[%emt 0:00:22]} Qa5 {[%emt 0:01:40]} 13. Qb3 {[%emt 0:05:28]} ({Better is} 13. Rc1) 13... Qb4 {[%emt 0:12:28]} 14. Nxc6 {[%emt 0:08:38]} Bxc6 {[%emt 0:00:28]} 15. Rfc1 {[%emt 0:00:29]} (15. Bxa7 Qxb3 16. Bxc6+ (16. axb3 Bd6 $16) 16... Rxc6) 15... a6 {[%emt 0:03:09]} ({Don't go for} 15... Qxb3 $2 16. axb3 Bd6 17. Bxc6+ (17. Rxa7 O-O $18) (17. Bxa7 Kd7 $16) 17... Rxc6 18. Rxa7 (18. Bxa7 Rxc1+ 19. Rxc1 Ke7 $16) (18. Rxc6 bxc6 19. Rxa7 O-O $16) 18... Rxc1+ 19. Bxc1 $18) 16. Bxc6+ {[%emt 0:02:57]} Rxc6 {[%emt 0:01:20]} (16... bxc6 $16 {is a better defense.} 17. Rc4 Qxb3 18. axb3 Bd6 19. Rxa6 Kd7) 17. Rxc6 $18 {[%emt 0:00:26]} bxc6 {[%emt 0:00:06]} 18. Qc2 {[%emt 0:00:25]} Qb7 {[%emt 0:09:26]} (18... c5 $142 19. a3 Qb5) 19. Rc1 {[%emt 0:01:18][%cal Ba1c1,Bc1d1,Bd1d7][%mdl 32]} Kd7 {[%emt 0:00:08]} 20. Qd3+ {[%emt 0:05:00]} Ke8 {[%emt 0:00:31]} 21. Qe4 {[%emt 0:01:49]} Kd7 {[%emt 0:00:23][%cal Be8d7,Bd7e7,Be7f7,Bf7g8,Bg8h7][%mdl 32]} 22. Bf4 {[%emt 0:06:00]} f6 $2 {[%emt 0:03:28] [#]} (22... f5 23. Qe5 c5) 23. Rd1+ {[%emt 0:00:18]} Ke7 {[%emt 0:00:06]} 24. Qg6 {[%emt 0:01:11]} e5 {[%emt 0:00:28]} 25. Be3 {[%emt 0:00:10]} Qb5 {[%emt 0:00:50] Inhibits Bc5+.} 26. Qg4 {[%emt 0:01:57][%csl Gd1][%cal Rg4d7] [#]} Kf7 {[%emt 0:01:15]} 27. Rd7+ {[%emt 0:00:19]} Kg8 {[%emt 0:00:44]} 28. Qe6+ {[%emt 0:01:09]} Kh7 {[%emt 0:00:02]} 29. Qxf6 {[%emt 0:01:22] Weighted Error Value: White=0.14 (very precise) /Black=0.40.  Mistake:       	White=1     	Black=4      Inaccurate:     	White=1     	Black=2      OK:         	White=6     	Black=2      Best:        	White=2     	---} 1-0